bitfinex/quotes_ETHUSD_20260109
["timestamp","ask_amount","ask_price","bid_price","bid_amount"]
[1767956429382,0.95023897,3097.1,3096.4,0.94541591]
[1767956429776,4.17909061,3097.1,3096.4,0.94541591]
[1767956430379,0.95023897,3097.1,3096.4,0.94541591]
[1767956430952,3.22877124,3097.2,3096.4,0.94541591]
[1767956431984,3.22877124,3097.2,3096.5,0.94541591]
[1767956432155,0.41790102,3097.1,3096.5,0.94541591]
[1767956432355,0.4186513,3097.6,3096.7,0.94541591]
[1767956432977,0.4186513,3097.6,3096.7,0.94641591]
[1767956433460,3.64697593,3097.6,3096.7,0.94641591]
[1767956434575,3.64697593,3097.6,3096.9,0.99859312]
[1767956434903,0.39009759,3097.5,3096.9,0.99859312]
[1767956436661,0.4186513,3097.6,3097.0,0.99859312]
[1767956436969,0.00081364,3097.6,3097.3,0.99859312]
[1767956439594,0.00081364,3097.6,3097.3,4.22714988]
[1767956439764,0.00081364,3097.6,3097.4,0.99859312]
[1767956444994,0.00281364,3097.6,3097.4,0.99859312]
[1767956445798,0.00281364,3097.6,3097.2,4.22726779]
[1767956448078,0.00281364,3097.6,3097.2,0.99859312]
[1767956449164,0.00281364,3097.6,3097.1,3.48278679]
[1767956449384,0.00281364,3097.6,3097.1,3.48282302]
[1767956451466,0.00281364,3097.6,3097.1,4.25395028]
[1767956452194,0.00281364,3097.6,3097.1,3.48282302]
[1767956453700,0.00281364,3097.6,3097.1,3.22882302]
[1767956456877,0.002,3097.3,3097.1,3.22882302]
[1767956457170,0.00281364,3097.6,3097.1,3.22882302]
[1767956459908,0.99591848,3097.6,3097.0,3.22888274]
[1767956460610,0.99310484,3097.5,3096.8,0.99942873]
[1767956460910,0.99310484,3097.5,3096.9,3.22903361]
[1767956461518,0.99310484,3097.5,3096.8,4.2285217]
[1767956461899,3.99848437,3097.4,3096.8,3.22909297]
[1767956462909,0.96580108,3096.9,3096.7,0.001]
[1767956463100,0.96380109,3096.9,3096.1,0.254]
[1767956463413,0.96380109,3096.9,3096.4,3.22950148]
[1767956463608,0.96380109,3096.9,3096.3,3.22959285]
[1767956464187,0.96380109,3096.9,3096.2,3.22976551]
[1767956464803,0.96380109,3096.9,3096.2,4.16395261]
[1767956466118,0.96380109,3096.9,3096.2,3.22976551]
[1767956466426,3.97118061,3097.0,3096.2,4.16395261]
[1767956468671,3.97118061,3097.0,3096.5,0.001]
[1767956468823,0.72000542,3096.9,3096.5,0.001]
[1767956470454,1.6858065,3096.9,3096.5,0.001]
[1767956470657,3.00537953,3096.8,3096.5,0.001]
[1767956471369,1.6858065,3096.9,3096.5,0.001]
[1767956471575,0.96580108,3096.8,3096.5,0.001]
[1767956473066,0.96580108,3097.0,3096.5,0.001]
[1767956473377,1.71119637,3097.0,3096.5,0.001]
[1767956475477,1.70919638,3097.0,3096.5,0.001]
[1767956477248,0.96580108,3096.9,3096.5,0.001]
[1767956487590,0.74539529,3097.0,3096.5,0.001]
[1767956490194,1.71119637,3097.0,3096.5,0.001]
[1767956491989,1.71119637,3097.0,3096.8,0.001]
[1767956492285,0.47165759,3096.9,3096.8,0.001]
[1767956492889,0.47165759,3096.9,3096.5,0.001]
[1767956495192,1.71119637,3097.0,3096.5,0.001]
[1767956496182,0.002,3097.3,3096.5,0.9130993]
[1767956496491,0.002,3097.3,3096.7,0.9120993]
[1767956497492,0.002,3097.3,3096.7,4.14130752]
[1767956499891,0.002,3097.3,3096.8,0.9120993]
[1767956500471,0.002,3097.3,3096.9,0.9120993]
[1767956500683,0.002,3097.3,3097.0,0.39177363]
[1767956501086,0.00281364,3097.6,3097.1,0.9120993]
[1767956501284,0.00281364,3097.6,3096.8,0.9120993]
[1767956501979,0.00281364,3097.6,3097.0,0.9120993]
[1767956503613,0.002,3097.3,3097.0,0.9120993]
[1767956503810,0.002,3097.3,3097.1,0.73701703]
[1767956504014,0.002,3097.3,3097.1,3.96575605]
[1767956505349,0.002,3097.3,3097.1,4.87785535]
[1767956509826,0.002,3097.3,3096.5,0.001]
[1767956510000,0.95190963,3097.3,3096.5,0.001]
[1767956512420,0.94990963,3096.8,3096.5,0.001]
[1767956516423,0.254,3097.2,3096.5,0.932296]
[1767956516837,1.20390963,3097.2,3096.5,0.932296]
[1767956517051,0.44345481,3097.1,3096.5,0.932296]
[1767956518533,0.44345481,3097.1,3096.5,4.16174288]
[1767956519312,0.44345481,3097.1,3096.5,0.932296]
[1767956519631,0.44345481,3097.1,3096.5,4.1617434]
[1767956521138,0.44345481,3097.1,3096.5,0.932296]
[1767956521441,0.94990963,3096.9,3096.5,0.001]
[1767956522242,0.46220943,3097.0,3096.5,0.001]
[1767956522441,1.41211906,3097.0,3096.5,0.001]
[1767956526872,1.41211906,3097.0,3096.8,0.001]
[1767956527075,1.41211906,3097.0,3096.5,0.001]
[1767956528445,0.9717517,3096.9,3096.5,0.001]
[1767956535780,0.9717517,3096.9,3096.2,7.279484]
[1767956535960,0.9717517,3096.9,3096.2,8.0330324]
[1767956539192,0.9717517,3096.9,3096.8,0.001]
[1767956539497,0.9717517,3096.9,3096.2,7.279484]
[1767956539667,0.9717517,3097.2,3096.3,0.91197189]
[1767956540884,3.23065256,3097.3,3096.3,0.91197189]
[1767956541190,0.254,3097.2,3096.4,0.91197189]
[1767956541493,1.2257517,3097.2,3096.4,4.14145409]
[1767956542487,0.9717517,3097.1,3096.2,4.04971849]
[1767956542786,0.9717517,3097.1,3096.3,3.22962724]
[1767956543974,0.9717517,3097.1,3096.2,4.39572724]
[1767956544292,0.9717517,3097.1,3096.3,3.2296612]
[1767956544699,0.9717517,3097.0,3096.3,3.2296612]
[1767956547795,0.9717517,3097.0,3096.4,0.03229556]
[1767956548001,0.254,3097.2,3096.4,0.94426745]
[1767956548165,1.2257517,3097.2,3096.4,0.94426745]
[1767956548365,4.45448717,3097.2,3096.4,0.94426745]
[1767956548688,4.45448717,3097.2,3096.4,0.91197189]
[1767956548689,0.9717517,3097.1,3096.4,0.91197189]
[1767956549489,4.20062118,3097.1,3096.3,3.2296612]
[1767956549793,0.9717517,3097.0,3096.3,3.2296612]
[1767956550492,0.9717517,3097.0,3096.6,0.001]
[1767956550691,0.002,3096.8,3096.6,0.001]
[1767956558102,0.002,3096.8,3096.6,0.96241857]
[1767956560708,0.002,3096.8,3096.7,0.96141857]
[1767956561009,0.002,3097.1,3096.8,0.96141857]
[1767956563217,0.002,3097.1,3096.8,4.19055366]
[1767956564923,0.002,3097.1,3096.9,0.96141857]
[1767956565218,0.002,3097.1,3097.0,0.96141857]
[1767956565802,0.002,3097.1,3096.9,3.22900134]
[1767956566006,0.002,3097.1,3096.9,4.27153978]
[1767956571897,0.002,3097.1,3096.9,5.25506976]
[1767956572192,0.95251504,3097.6,3097.1,0.98352998]
[1767956572193,0.00281364,3097.6,3097.1,0.98352998]
[1767956572607,0.00281364,3097.6,3097.2,0.98352998]
[1767956573634,0.00281364,3097.6,3097.1,3.2288069]
[1767956573843,0.00281364,3097.6,3097.0,7.21816819]
[1767956574134,0.002,3097.3,3097.0,7.8355794]
[1767956574325,0.002,3097.3,3097.0,7.83562152]
[1767956576632,0.002,3097.3,3097.0,3.8463362]
[1767956578309,0.002,3097.3,3097.0,0.61741121]
[1767956578651,0.002,3097.3,3096.9,3.22898432]
[1767956578849,0.9517014,3097.3,3096.8,3.22909353]
[1767956582807,0.9517014,3097.3,3096.6,3.23034831]
[1767956584148,0.92676677,3097.2,3096.6,0.001]
[1767956585356,0.92676677,3097.1,3096.6,0.001]
[1767956585508,0.92676677,3097.1,3096.9,0.001]
[1767956586949,0.92676677,3097.1,3096.6,0.001]
[1767956591040,0.92676677,3097.0,3096.6,0.001]
[1767956591539,0.92676677,3096.9,3096.6,0.001]
[1767956591744,0.92676677,3096.7,3096.6,0.001]
[1767956596051,0.92676677,3096.9,3096.6,0.001]
[1767956599945,0.002,3097.3,3096.8,3.00575534]
[1767956600262,0.002,3097.3,3096.6,3.97024259]
[1767956600263,0.002,3097.3,3097.0,3.00575534]
[1767956600978,0.002,3097.3,3096.9,3.00575534]
[1767956601487,0.002,3097.3,3096.9,3.22903548]
[1767956602271,0.002,3097.3,3096.9,5.2352634]
[1767956602573,0.00281364,3097.6,3097.2,3.00575534]
[1767956603550,0.00281364,3097.6,3097.3,3.22861847]
[1767956604475,0.00281364,3097.6,3097.4,3.00575534]
[1767956604774,0.254,3098.0,3097.4,3.00575534]
[1767956605574,0.254,3098.0,3097.3,10.42647953]
[1767956605775,0.254,3098.0,3097.3,8.46034625]
[1767956605945,0.254,3098.0,3097.4,3.00575534]
[1767956606874,0.92676677,3098.1,3097.4,3.00575534]
[1767956607080,0.92676677,3098.1,3097.6,3.00575534]
[1767956607553,0.92676677,3098.1,3097.5,3.00575534]
[1767956608151,0.92676677,3098.1,3097.6,3.22830578]
[1767956609982,0.92676677,3098.1,3097.5,6.2341141]
[1767956610356,0.002,3097.7,3097.5,6.2341141]
[1767956610559,0.002,3097.7,3097.6,0.71976014]
[1767956611485,0.002,3097.7,3097.3,4.26818592]
[1767956615650,0.002,3097.7,3097.3,7.49680439]
[1767956615850,0.002,3097.7,3097.3,4.26818592]
[1767956619772,0.90818503,3097.7,3097.2,3.4834888]
[1767956622475,0.90818503,3097.7,3097.6,0.001]
[1767956641457,0.002,3097.7,3097.6,0.001]
[1767956660329,0.002,3098.0,3097.6,0.001]
[1767956660533,0.002,3098.0,3097.6,0.99383325]
[1767956660965,0.002,3098.0,3097.7,0.99283325]
[1767956663474,0.002,3098.0,3097.7,4.22103141]
[1767956668670,0.002,3098.0,3097.7,0.99283325]
[1767956669438,0.002,3098.0,3097.7,4.25331034]
[1767956669767,0.002,3098.0,3097.7,4.22102833]
[1767956669971,0.002,3098.0,3097.7,0.99283325]
[1767956672071,0.002,3098.3,3097.9,0.99283325]
[1767956674582,0.002,3098.3,3097.7,8.17946027]
[1767956676382,0.002,3098.3,3097.7,4.95125871]
[1767956676560,0.92643474,3098.3,3097.7,4.04775528]
[1767956677859,0.002,3098.3,3097.7,4.04775528]
[1767956678059,0.002,3098.3,3097.7,4.95125871]
[1767956678379,0.002,3098.3,3097.8,0.84345409]
[1767956678695,0.002,3098.3,3098.0,0.90350343]
[1767956680454,0.002,3098.3,3097.9,3.22799315]
[1767956680662,0.002,3098.3,3098.0,0.001]
[1767956681069,0.92443474,3098.2,3098.0,0.001]
[1767956683701,0.002,3098.3,3098.0,0.001]
[1767956685621,0.002,3098.3,3098.0,0.90450343]
[1767956685967,0.002,3098.3,3098.0,0.001]
[1767956687174,0.002,3098.4,3098.0,4.13229083]
[1767956687365,0.002,3098.4,3098.0,5.16869081]
[1767956688191,0.002,3098.4,3098.1,0.90218873]
[1767956689787,0.002,3098.4,3098.0,4.26518738]
[1767956690763,0.002,3098.4,3098.1,3.22776429]
[1767956690965,0.002,3098.4,3098.2,0.42651643]
[1767956691504,0.002,3098.4,3098.0,4.26523777]
[1767956692063,0.002,3098.4,3098.0,1.03739998]
[1767956692478,0.002,3098.4,3098.2,0.001]
[1767956699472,0.002,3098.5,3098.2,0.001]
[1767956700704,0.94302783,3098.7,3098.2,0.001]
[1767956701401,0.94102783,3098.6,3098.2,0.001]
[1767956702009,0.94102783,3098.6,3098.0,0.001]
[1767956702010,0.94102783,3098.3,3098.0,0.001]
[1767956702192,3.94432947,3098.1,3097.5,3.22914608]
[1767956702794,0.94102783,3098.1,3097.5,3.22914608]
[1767956702994,0.94102783,3098.1,3097.5,0.00080144]
[1767956702995,3.94432947,3098.1,3097.5,0.00080144]
[1767956703187,0.91821247,3098.0,3097.5,0.00080144]
[1767956709117,0.91821247,3098.2,3097.5,0.00080144]
[1767956709413,0.91821247,3098.6,3097.7,0.99211524]
[1767956709610,0.254,3098.5,3097.8,1.02439621]
[1767956709981,0.91821247,3098.4,3097.6,0.001]
[1767956710225,0.91821247,3098.4,3097.6,3.22925311]
[1767956710226,0.91821247,3098.3,3097.6,3.22925311]
[1767956711027,0.91821247,3098.3,3097.7,3.22819943]
[1767956711184,0.91821247,3098.3,3097.6,3.22925083]
[1767956712095,0.91821247,3098.3,3097.6,0.001]
[1767956712300,0.91621248,3098.3,3097.6,0.001]
[1767956714931,3.4814165,3098.5,3097.6,0.001]
[1767956714932,1.17221247,3098.5,3097.7,0.99211524]
[1767956715505,1.17221247,3098.5,3097.9,0.001]
[1767956715897,0.002,3098.0,3097.9,0.001]
[1767956716104,0.002,3098.3,3097.9,0.001]
[1767956721612,0.91821247,3098.1,3097.9,0.001]
[1767956722332,3.00330164,3098.2,3097.9,0.001]
[1767956722846,0.92021247,3098.3,3097.9,0.001]
[1767956723842,0.002,3098.3,3097.9,0.001]
[1767956726044,0.002,3098.3,3097.9,0.99311524]
[1767956727049,0.002,3098.3,3097.9,0.001]
[1767956727211,0.92021247,3098.3,3097.9,0.001]
[1767956727612,0.002,3098.0,3097.9,0.001]
[1767956737514,0.002,3098.3,3097.9,0.001]
[1767956737941,0.002,3098.3,3097.9,0.99727474]
[1767956738883,0.256,3098.3,3097.9,0.99727474]
[1767956739576,0.256,3098.3,3097.9,0.001]
[1767956739758,0.002,3098.0,3097.9,0.001]
[1767956739954,0.002,3098.0,3097.9,4.64780496]
[1767956741149,0.002,3098.7,3098.0,0.99627474]
[1767956741349,0.256,3098.7,3098.2,3.99957638]
[1767956741579,0.256,3098.7,3098.3,0.39995764]
[1767956742878,0.256,3098.7,3098.2,0.99627474]
[1767956743080,0.002,3098.7,3098.2,4.22390851]
[1767956743283,0.002,3098.7,3098.3,0.99627474]
[1767956746111,0.002,3098.7,3098.4,0.99627474]
[1767956749192,0.002,3098.7,3098.5,0.94043219]
[1767956764229,0.002,3098.4,3098.3,0.93195201]
[1767956764424,0.002,3098.7,3098.1,4.1596737]
[1767956764607,0.002,3098.7,3098.2,4.15961358]
[1767956764808,0.002,3098.7,3098.2,0.93195201]
[1767956767050,0.002,3098.7,3098.2,4.15962932]
[1767956767205,0.002,3098.7,3098.2,4.89838077]
[1767956767734,0.002,3098.7,3098.3,0.93195201]
[1767956769951,0.002,3098.7,3098.3,4.15952712]
[1767956770688,0.002,3098.7,3098.3,0.93195201]
[1767956770984,0.002,3098.7,3098.2,0.73875145]
[1767956771187,0.002,3098.7,3098.2,1.67070346]
[1767956772385,0.002,3098.7,3098.2,4.89837557]
[1767956773081,0.002,3098.7,3098.2,1.67070346]
[1767956773380,0.002,3098.7,3098.2,0.73875145]
[1767956775357,0.002,3098.7,3098.2,3.22767719]
[1767956775689,0.002,3098.4,3098.2,3.22767719]
[1767956777105,0.002,3098.4,3098.1,3.22773408]
[1767956778004,0.002,3098.4,3098.1,3.22778477]
[1767956778303,0.002,3098.4,3098.1,4.15973678]
[1767956778505,0.002,3098.4,3098.2,0.73876055]
[1767956779272,0.002,3098.4,3098.2,1.67071256]
[1767956780306,0.002,3098.4,3098.3,0.93195201]
[1767956781007,0.002,3098.4,3098.2,3.96634472]
[1767956783181,0.002,3098.4,3098.2,4.89829673]
[1767956783399,0.002,3098.4,3098.3,0.81260815]
[1767956783634,0.002,3098.4,3098.3,4.97213657]
[1767956784644,0.002,3098.4,3098.3,1.74456016]
[1767956784930,0.002,3098.4,3098.3,0.81260815]
[1767956786433,0.002,3098.4,3098.3,4.04018456]
[1767956786830,0.002,3098.4,3098.3,0.81260815]
[1767956787029,0.002,3098.4,3098.0,3.22788334]
[1767956787337,0.002,3098.4,3097.9,3.22893978]
[1767956787712,0.002,3098.4,3097.9,0.93295201]
[1767956789238,0.002,3098.4,3097.9,4.16093384]
[1767956790247,0.002,3098.4,3097.9,0.93295201]
[1767956790446,0.98148429,3098.4,3097.9,0.001]
[1767956790611,0.97948429,3098.3,3097.9,0.001]
[1767956791960,1.65635974,3098.4,3097.9,0.001]
[1767956793356,1.23548429,3098.4,3097.9,0.001]
[1767956794054,0.98148429,3098.4,3097.9,0.001]
[1767956794361,0.254,3098.3,3097.9,0.001]
[1767956796056,0.98148429,3098.4,3097.9,0.001]
[1767956796261,0.254,3098.3,3097.9,0.001]
[1767956797168,1.69723024,3098.3,3097.9,0.001]
[1767956800121,1.69723024,3098.3,3098.2,0.001]
[1767956800325,0.99693942,3098.2,3097.9,0.001]
[1767956800825,0.70029082,3098.3,3097.9,0.001]
[1767956804817,1.69723024,3098.3,3097.9,0.001]
[1767956805023,0.4926726,3098.2,3097.9,0.001]
[1767956810021,1.69723024,3098.3,3097.9,0.001]
[1767956810728,0.70029082,3098.3,3097.9,0.001]
[1767956811628,0.70029082,3098.3,3098.2,0.001]
[1767956811834,0.90785222,3098.2,3097.9,0.001]
[1767956812332,0.70029082,3098.3,3097.9,0.001]
[1767956817653,0.48376231,3098.2,3097.9,0.001]
[1767956817939,3.00391802,3098.1,3097.6,0.001]
[1767956818107,3.00391802,3097.8,3097.5,0.00080144]
[1767956819242,3.91177024,3097.8,3097.5,0.00080144]
[1767956819547,3.00391802,3097.6,3097.2,0.00081445]
[1767956819916,3.91177024,3097.6,3096.9,0.001]
[1767956820107,0.90785222,3097.5,3096.9,0.001]
[1767956820313,3.91177024,3097.5,3096.9,0.001]
[1767956820537,0.39125847,3097.4,3096.9,0.95744662]
[1767956821741,3.00391802,3097.3,3096.9,0.001]
[1767956821950,3.91177024,3097.3,3096.9,0.001]
[1767956822738,3.91177024,3097.3,3096.6,0.001]
[1767956822739,3.00391802,3097.1,3096.6,0.001]
[1767956823766,3.00391802,3096.9,3096.6,0.001]
[1767956824049,0.62328492,3096.8,3096.6,0.001]
[1767956825053,7.17953747,3097.1,3096.6,0.001]
[1767956828369,10.40840265,3097.1,3096.6,0.001]
[1767956828562,0.94675427,3097.0,3096.6,0.001]
[1767956829733,3.25791802,3097.3,3096.6,0.92074645]
[1767956829734,3.48266709,3097.3,3096.6,0.92074645]
[1767956830060,0.254,3097.2,3096.7,0.95203889]
[1767956831552,0.254,3097.4,3096.7,0.95203889]
[1767956831748,1.01984081,3097.4,3096.7,0.91974645]
[1767956831942,1.96659508,3097.4,3096.7,0.91974645]
[1767956832143,3.95067229,3097.2,3096.6,0.001]
[1767956832553,0.94675427,3097.1,3096.6,0.001]
[1767956833265,3.00391802,3097.2,3096.6,0.001]
[1767956833454,0.39506723,3097.1,3096.6,0.001]
[1767956834370,0.39506723,3097.1,3096.6,0.92074645]
[1767956834532,0.94675427,3097.3,3096.6,0.92074645]
[1767956834733,3.22865656,3097.3,3096.9,0.92174645]
[1767956834932,4.24840601,3097.4,3096.9,0.92174645]
[1767956835570,3.2284643,3097.5,3096.9,0.92174645]
[1767956835741,0.00081445,3097.6,3097.0,0.91974645]
[1767956836568,0.00081445,3097.6,3097.2,0.91974645]
[1767956842377,0.00081445,3097.6,3097.0,0.91974645]
[1767956842948,0.94756872,3097.6,3096.9,0.002]
[1767956843149,0.94675427,3097.5,3096.9,0.002]
[1767956843764,3.22851423,3097.4,3096.9,0.002]
[1767956844156,4.17520923,3097.5,3096.9,0.002]
[1767956847180,0.002,3097.3,3096.9,0.002]
[1767956848757,3.23061847,3097.3,3096.9,0.002]
[1767956848956,4.94335551,3097.3,3096.9,0.002]
[1767956850650,3.00391802,3097.2,3096.9,0.002]
[1767956850847,3.00391802,3097.2,3096.6,0.92074645]
[1767956850848,0.94675427,3097.1,3096.6,0.001]
[1767956855184,0.98998807,3097.0,3096.6,0.001]
[1767956855492,0.98998807,3097.1,3096.6,0.001]
[1767956855661,1.78905134,3097.1,3096.6,0.001]
[1767956856157,0.79906327,3097.1,3096.6,0.91372359]
[1767956856984,0.79906327,3097.1,3096.6,0.86372359]
[1767956857182,4.02789111,3097.1,3096.6,0.86372359]
[1767956857980,0.79906327,3097.1,3096.6,0.86372359]
[1767956859398,0.79906327,3097.1,3096.9,0.002]
[1767956859563,0.40278295,3097.0,3096.5,0.002]
[1767956859764,4.21875428,3097.2,3096.5,0.002]
[1767956860689,0.98998807,3097.1,3096.5,0.002]
[1767956861499,6.23268423,3097.2,3096.5,0.91472359]
[1767956861782,0.002,3097.3,3097.0,0.91272359]
[1767956863191,0.002,3097.3,3097.0,3.91664161]
[1767956863392,0.002,3097.3,3097.1,0.91272359]
[1767956863597,0.002,3097.3,3097.2,0.91272359]
[1767956864201,0.00281445,3097.6,3097.3,0.91272359]
[1767956865495,0.00281445,3097.6,3097.4,0.91272359]
[1767956865892,0.00080144,3098.2,3097.6,0.91272359]
[1767956867597,3.22848717,3098.2,3097.6,0.91272359]
[1767956867800,0.00080144,3098.2,3097.6,0.91272359]
[1767956868415,0.95646204,3098.2,3097.2,0.99031701]
[1767956868568,0.95646204,3098.2,3097.3,0.254]
[1767956868916,0.9556606,3098.1,3097.3,0.254]
[1767956869604,0.9556606,3098.1,3097.2,3.22948344]
[1767956869907,0.9556606,3097.9,3097.2,3.22948344]
[1767956870072,0.9556606,3097.9,3097.3,0.34834834]
[1767956870800,0.001,3097.6,3097.3,0.34834834]
[1767956876909,0.001,3097.6,3097.2,0.00081526]
[1767956877420,0.9566606,3097.6,3097.2,0.00081526]
[1767956880119,0.001,3097.6,3097.2,0.00081526]
[1767956881122,0.001,3097.6,3097.2,0.99031701]
[1767956882429,0.001,3097.6,3097.5,0.001]
[1767956886716,0.001,3097.6,3097.2,0.00081526]
[1767956887924,0.90805093,3097.6,3097.2,0.00081526]
[1767956888115,0.39122504,3097.5,3097.2,0.00081526]
[1767956889324,0.39122504,3097.5,3096.9,0.96528275]
[1767956889325,0.90705093,3097.3,3096.5,0.002]
[1767956889620,3.91125039,3097.1,3096.5,0.002]
[1767956894936,7.14008596,3097.1,3096.8,0.001]
[1767956895105,0.7140086,3097.0,3096.5,0.002]
[1767956895302,1.62105953,3097.0,3096.5,0.002]
[1767956896055,0.7140086,3097.0,3096.5,0.96728275]
[1767956898034,0.7140086,3097.0,3096.5,0.002]
[1767956899633,3.94294862,3097.0,3096.5,0.002]
[1767956899848,1.60176574,3096.9,3096.5,0.002]
[1767956900031,0.69471481,3096.9,3096.5,0.002]
[1767956900636,0.69471481,3096.9,3096.2,0.96528275]
[1767956900818,0.69471481,3096.9,3096.2,4.19504577]
[1767956901344,0.69471481,3096.9,3096.3,0.96528275]
[1767956902617,0.5544744,3096.8,3096.2,0.96528275]
[1767956904256,0.5544744,3096.8,3096.2,4.19504764]
[1767956904648,0.52678657,3096.8,3096.2,4.19504764]
[1767956905435,4.8500414,3097.0,3096.2,4.19504764]
[1767956906936,4.8500414,3097.0,3096.5,0.002]
[1767956907255,0.001,3096.6,3096.5,0.002]
[1767956909955,0.001,3096.6,3096.5,0.96728275]
[1767956914059,0.001,3096.6,3096.5,0.002]
[1767956919865,0.001,3096.6,3096.1,0.98486131]
[1767956920067,0.001,3096.6,3096.2,3.22974348]
[1767956920234,0.001,3096.6,3096.2,4.21260479]
[1767956920434,0.001,3096.6,3096.3,0.98286131]
[1767956927672,0.001,3096.6,3096.2,0.7444545]
[1767956927871,0.001,3096.6,3096.1,0.93464053]
[1767956929134,0.001,3096.6,3096.1,3.23186614]
[1767956929339,0.001,3096.6,3096.1,0.002]
[1767956930468,0.001,3096.6,3096.1,3.23186179]
[1767956930674,0.001,3096.6,3096.3,0.002]
[1767956935147,0.001,3096.6,3096.0,4.15633111]
[1767956935374,0.001,3096.6,3096.0,4.92037145]
[1767956936263,0.92192906,3096.6,3095.9,3.48402972]
[1767956936476,0.92192906,3096.6,3095.9,3.23002972]
[1767956936847,0.92192906,3096.6,3095.9,4.16267025]
[1767956937087,0.92092906,3096.4,3095.7,0.93264053]
[1767956937249,3.00670119,3096.3,3095.7,0.93264053]
[1767956937459,4.62106339,3096.3,3095.5,4.41808099]
[1767956938066,3.92763025,3096.3,3095.6,3.23037609]
[1767956938373,0.92092906,3096.3,3095.6,3.23037609]
[1767956940298,0.92092906,3096.3,3095.6,4.16301662]
[1767956940893,3.92763025,3096.5,3095.7,0.93264053]
[1767956941398,0.92092906,3096.4,3095.7,0.93264053]
[1767956941572,0.001,3096.6,3095.8,0.93264053]
[1767956941778,0.255,3096.6,3095.8,0.93264053]
[1767956941973,0.255,3096.6,3095.7,4.07221903]
[1767956941974,0.001,3096.6,3096.1,3.93934172]
[1767956942180,0.001,3096.6,3096.2,0.93264053]
[1767956942894,0.001,3096.6,3096.3,0.99561253]
[1767956944389,0.001,3096.6,3096.4,1.02790809]
[1767956944700,3.48278254,3097.2,3096.5,0.99561253]
[1767956945071,6.48948373,3097.2,3096.5,0.99561253]
[1767956945506,7.39083695,3097.2,3096.5,0.99561253]
[1767956946799,7.13683695,3097.2,3096.5,0.99561253]
[1767956947101,8.42737546,3097.2,3096.5,0.99561253]
[1767956947805,5.19859292,3097.2,3096.5,0.99561253]
[1767956948013,0.90135322,3097.4,3096.7,4.00231372]
[1767956948306,0.39122504,3097.5,3096.8,0.99561253]
[1767956948885,1.15716848,3097.6,3096.8,0.99561253]
[1767956949911,1.15716848,3097.6,3096.9,0.99561253]
[1767956951307,7.61381296,3097.6,3096.9,0.99561253]
[1767956951485,3.00670119,3097.4,3096.7,0.99561253]
[1767956952208,3.90805441,3097.0,3096.2,0.99561253]
[1767956952388,3.00670119,3096.6,3096.0,0.99761253]
[1767956952584,3.90805441,3096.6,3096.0,0.002]
[1767956952901,3.00670119,3096.4,3096.0,0.002]
[1767956953097,3.90805441,3096.4,3096.0,0.002]
[1767956954202,0.90135322,3096.3,3096.0,0.002]
[1767956956812,3.90805441,3096.2,3095.6,0.002]
[1767956960719,0.90135322,3096.1,3095.6,0.002]
[1767956963426,3.00670119,3096.0,3095.6,0.002]
[1767956965715,3.90805441,3096.0,3095.6,0.002]
[1767956967116,3.00670119,3096.0,3095.9,0.002]
[1767956967419,4.62183934,3096.0,3095.6,0.002]
[1767956968322,3.72048612,3096.0,3095.6,0.002]
[1767956969505,3.00670119,3096.2,3095.6,0.99761253]
[1767956969710,0.71375096,3096.3,3095.6,0.99761253]
[1767956970109,1.61510418,3096.3,3095.6,0.99761253]
[1767956970619,1.61510418,3096.3,3095.7,3.23028717]
[1767956971291,0.71375096,3096.3,3095.7,3.23028717]
[1767956971928,3.92043342,3097.0,3095.9,0.99561253]
[1767956971929,3.00770119,3096.9,3095.9,0.99561253]
[1767956972221,0.90135322,3096.6,3095.9,0.99561253]
[1767956972588,3.90805441,3096.6,3095.9,0.99561253]
[1767956973292,7.13742793,3096.6,3095.9,0.99561253]
[1767956974524,3.90805441,3096.6,3095.9,4.22567116]
[1767956974823,4.62178819,3096.6,3095.9,4.22567116]
[1767956975038,0.98960698,3096.5,3095.8,0.254]
[1767956975236,6.94982151,3096.6,3095.7,0.93813052]
[1767956975237,3.99630817,3096.4,3095.7,0.93813052]
[1767956975893,3.99630817,3096.4,3095.8,3.23018248]
[1767956976098,0.37802308,3096.3,3095.8,3.23018248]
[1767956977045,0.37802308,3096.3,3095.7,3.23023722]
[1767956977222,1.36763006,3096.3,3095.7,3.23023722]
[1767956978521,0.98960698,3096.1,3095.7,3.23023722]
[1767956979102,0.98960698,3096.1,3095.6,3.23239152]
[1767956979411,0.98960698,3096.1,3095.9,0.002]
[1767956979750,3.00670119,3096.0,3095.6,0.002]
[1767956979901,3.99630817,3096.0,3095.6,0.002]
[1767956980107,3.99630817,3096.0,3095.3,0.002]
[1767956980108,3.99630817,3095.8,3095.3,0.002]
[1767956980739,3.99630817,3096.0,3095.3,0.002]
[1767956980950,0.76636272,3095.9,3095.3,3.23268304]
[1767956981110,3.77306391,3095.9,3095.3,0.002]
[1767956982018,7.00315002,3095.9,3095.3,0.002]
[1767956982333,3.99630817,3095.7,3095.3,0.002]
[1767956983132,0.98960698,3095.7,3095.3,0.002]
[1767956983330,1.78888268,3095.7,3095.3,0.002]
[1767956984431,3.99630817,3095.6,3095.3,0.002]
[1767956984631,3.00670119,3095.6,3095.3,0.002]
[1767956985399,7.22670841,3095.6,3095.0,0.002]
[1767956985619,3.99630817,3095.1,3094.7,0.002]
[1767956985804,3.99430818,3095.1,3094.7,0.002]
[1767956986004,0.98960698,3095.1,3094.7,0.002]
[1767956986509,0.98760699,3095.0,3094.7,0.002]
[1767956986812,0.985607,3095.0,3094.7,0.002]
[1767956987012,0.985607,3095.0,3094.5,0.002]
[1767956987859,0.97435075,3094.9,3094.5,0.002]
[1767956988206,0.97435075,3094.9,3094.4,0.00280272]
[1767956988207,3.98476648,3094.8,3094.4,0.00280272]
[1767956988508,0.97435075,3094.6,3094.4,0.00280272]
[1767956989100,0.97435075,3094.6,3094.3,0.002]
[1767956989707,0.39847665,3094.7,3094.3,0.002]